[Event "NJSK 2023 Jeugd C"]
[Site "Almelo, Netherlands"]
[Date "2023.05.06"]
[Round "9.9"]
[White "Ambrona Navarro, Himar"]
[Black "Fallaux, Storm"]
[Result "1-0"]
[TimeControl "90min/40moves + 30min + 30sec/move"]
[WhiteElo "1834"]
[BlackElo "1650"]

1. d4 {[%clk 01:30:58]} {[%emt 00:00:02]} Nf6 {[%clk 01:30:55]} {[%emt
00:00:07]} 2. Bg5 {[%clk 01:31:16]} {[%emt 00:00:11]} d5 {[%clk 01:31:18]}
{[%emt 00:00:08]} 3. Nd2 {[%clk 01:31:32]} {[%emt 00:00:11]} c5 {[%clk
01:31:37]} {[%emt 00:00:13]} 4. e3 {[%clk 01:31:53]} {[%emt 00:00:08]} cxd4
{[%clk 01:32:04]} {[%emt 00:00:05]} 5. exd4 {[%clk 01:32:16]} {[%emt 00:00:06]}
Qb6 {[%clk 01:32:32]} {[%emt 00:00:03]} 6. Nb3 {[%clk 01:31:56]} {[%emt
00:00:50]} Bf5 {[%clk 01:32:13]} {[%emt 00:00:49]} 7. Nf3 {[%clk 01:31:47]}
{[%emt 00:00:38]} Nc6 {[%clk 01:32:21]} {[%emt 00:00:24]} 8. c3 {[%clk
01:31:45]} {[%emt 00:00:31]} e6 {[%clk 01:32:34]} {[%emt 00:00:17]} 9. Bd3
{[%clk 01:31:52]} {[%emt 00:00:21]} Bxd3 {[%clk 01:33:00]} {[%emt 00:00:05]} 10.
Qxd3 {[%clk 01:32:08]} {[%emt 00:00:14]} Ne4 {[%clk 01:33:28]} {[%emt
00:00:04]} 11. Bf4 {[%clk 01:30:54]} {[%emt 00:01:38]} Bd6 {[%clk 01:33:46]}
{[%emt 00:00:17]} 12. Bxd6 {[%clk 01:29:10]} {[%emt 00:02:12]} Nxd6 {[%clk
01:34:15]} {[%emt 00:00:03]} 13. O-O {[%clk 01:28:58]} {[%emt 00:00:41]} O-O
{[%clk 01:34:34]} {[%emt 00:00:12]} 14. Nc5 {[%clk 01:27:42]} {[%emt 00:01:44]}
Qc7 {[%clk 01:34:36]} {[%emt 00:00:31]} 15. Ng5 {[%clk 01:26:35]} {[%emt
00:01:35]} g6 {[%clk 01:34:49]} {[%emt 00:00:18]} 16. Qh3 {[%clk 01:25:39]}
{[%emt 00:01:23]} h5 {[%clk 01:22:47]} {[%emt 00:12:35]} 17. g4 {[%clk
01:24:43]} {[%emt 00:01:26]} Qe7 {[%clk 01:22:19]} {[%emt 00:00:59]} 18. f4
{[%clk 01:24:02]} {[%emt 00:01:09]} b6 {[%clk 01:21:40]} {[%emt 00:01:11]} 19.
Nd3 {[%clk 01:21:56]} {[%emt 00:02:33]} f6 {[%clk 01:20:31]} {[%emt 00:01:40]}
20. Nf3 {[%clk 01:21:35]} {[%emt 00:00:50]} hxg4 {[%clk 01:20:30]} {[%emt
00:00:34]} 21. Qxg4 {[%clk 01:21:43]} {[%emt 00:00:21]} Kf7 {[%clk 01:14:59]}
{[%emt 00:06:02]} 22. Rae1 {[%clk 01:19:31]} {[%emt 00:02:39]} Nf5 {[%clk
01:10:59]} {[%emt 00:04:32]} 23. Re2 {[%clk 01:16:39]} {[%emt 00:03:20]} Rae8
{[%clk 01:07:23]} {[%emt 00:04:08]} 24. b4 {[%clk 01:13:49]} {[%emt 00:03:19]}
Nd8 {[%clk 00:57:51]} {[%emt 00:10:03]} 25. Rg2 {[%clk 01:11:39]} {[%emt
00:02:39]} Rg8 {[%clk 00:56:45]} {[%emt 00:01:37]} 26. Qh3 {[%clk 01:07:18]}
{[%emt 00:04:48]} Rh8 {[%clk 00:54:45]} {[%emt 00:02:33]} 27. Qg4 {[%clk
00:38:11]} {[%emt 00:29:36]} Ne3 {[%clk 00:51:09]} {[%emt 00:04:08]} 28. Nde5+
{[%clk 00:14:17]} {[%emt 00:24:24]} fxe5 {[%clk 00:43:58]} {[%emt 00:07:41]} 29.
Nxe5+ {[%clk 00:14:42]} {[%emt 00:00:05]} Kg7 {[%clk 00:30:38]} {[%emt
00:13:50]} 30. Qxg6+ {[%clk 00:13:14]} {[%emt 00:01:56]} Kf8 {[%clk 00:31:03]}
{[%emt 00:00:07]} 31. f5 {[%clk 00:11:59]} {[%emt 00:01:44]} Nxf1 {[%clk
00:18:12]} {[%emt 00:13:21]} 32. fxe6 {[%clk 00:12:07]} {[%emt 00:00:22]} Qc7
{[%clk 00:11:19]} {[%emt 00:07:24]} 33. Qf6+ {[%clk 00:11:23]} {[%emt
00:01:13]} Nf7 {[%clk 00:11:25]} {[%emt 00:00:25]} 34. Ng6+ {[%clk 00:11:34]}
{[%emt 00:00:18]} Kg8 {[%clk 00:11:46]} {[%emt 00:00:10]} 35. Ne7+ {[%clk
00:11:51]} {[%emt 00:00:11]} Kh7 {[%clk 00:12:01]} {[%emt 00:00:16]} 36. Qg7#
{[%clk 00:11:43]} {[%emt 00:00:08]} 1-0

[Event "NJSK 2023 Jeugd C"]
[Site "Almelo, Netherlands"]
[Date "2023.05.06"]
[Round "9.10"]
[White "Thijssen, Freek"]
[Black "Aravindhan, Achyuth"]
[Result "0-1"]
[TimeControl "90min/40moves + 30min + 30sec/move"]
[WhiteElo "1644"]
[BlackElo "1833"]

1. e4 {[%clk 01:30:58]} {[%emt 00:00:02]} c5 {[%clk 01:30:55]} {[%emt
00:00:05]} 2. Nf3 {[%clk 01:31:25]} {[%emt 00:00:03]} Nc6 {[%clk 01:31:20]}
{[%emt 00:00:04]} 3. d4 {[%clk 01:31:51]} {[%emt 00:00:05]} cxd4 {[%clk
01:31:47]} {[%emt 00:00:03]} 4. Nxd4 {[%clk 01:32:17]} {[%emt 00:00:04]} Nf6
{[%clk 01:32:09]} {[%emt 00:00:08]} 5. Nc3 {[%clk 01:32:43]} {[%emt 00:00:05]}
e5 {[%clk 01:32:32]} {[%emt 00:00:07]} 6. Ndb5 {[%clk 01:32:49]} {[%emt
00:00:24]} d6 {[%clk 01:32:55]} {[%emt 00:00:07]} 7. Bg5 {[%clk 01:32:25]}
{[%emt 00:00:53]} a6 {[%clk 01:33:16]} {[%emt 00:00:09]} 8. Na3 {[%clk
01:32:50]} {[%emt 00:00:05]} b5 {[%clk 01:33:42]} {[%emt 00:00:04]} 9. Nd5
{[%clk 01:33:10]} {[%emt 00:00:10]} Be7 {[%clk 01:34:06]} {[%emt 00:00:05]} 10.
Bxf6 {[%clk 01:31:20]} {[%emt 00:02:20]} Bxf6 {[%clk 01:34:28]} {[%emt
00:00:08]} 11. c3 {[%clk 01:31:02]} {[%emt 00:00:48]} Ne7 {[%clk 01:32:46]}
{[%emt 00:02:12]} 12. Nxf6+ {[%clk 01:23:57]} {[%emt 00:07:36]} gxf6 {[%clk
01:32:32]} {[%emt 00:00:43]} 13. Qd2 {[%clk 01:11:56]} {[%emt 00:12:31]} d5
{[%clk 01:19:20]} {[%emt 00:13:43]} 14. exd5 {[%clk 01:05:05]} {[%emt
00:07:21]} Nxd5 {[%clk 01:15:50]} {[%emt 00:03:59]} 15. Bd3 {[%clk 00:52:30]}
{[%emt 00:13:06]} f5 {[%clk 01:04:52]} {[%emt 00:11:28]} 16. O-O-O {[%clk
00:49:17]} {[%emt 00:03:42]} Bb7 {[%clk 00:39:36]} {[%emt 00:25:47]} 17. Bxf5
{[%clk 00:24:41]} {[%emt 00:25:05]} Qf6 {[%clk 00:39:10]} {[%emt 00:00:56]} 18.
Be4 {[%clk 00:24:47]} {[%emt 00:00:26]} O-O-O {[%clk 00:39:06]} {[%emt
00:00:33]} 19. Kb1 {[%clk 00:14:39]} {[%emt 00:10:38]} Kb8 {[%clk 00:35:36]}
{[%emt 00:03:59]} 20. Qc2 {[%clk 00:10:50]} {[%emt 00:04:20]} Qf4 {[%clk
00:24:35]} {[%emt 00:11:30]} 21. Bxd5 {[%clk 00:09:14]} {[%emt 00:02:07]} Bxd5
{[%clk 00:24:38]} {[%emt 00:00:27]} 22. f3 {[%clk 00:09:35]} {[%emt 00:00:09]}
Rhg8 {[%clk 00:22:30]} {[%emt 00:02:38]} 23. Rd3 {[%clk 00:07:48]} {[%emt
00:02:16]} Rg6 {[%clk 00:13:39]} {[%emt 00:09:18]} 24. Rhd1 {[%clk 00:07:34]}
{[%emt 00:00:47]} Rgd6 {[%clk 00:13:49]} {[%emt 00:00:21]} 25. c4 {[%clk
00:05:31]} {[%emt 00:02:33]} Be4 {[%clk 00:13:10]} {[%emt 00:01:08]} 26. Rxd6
{[%clk 00:01:56]} {[%emt 00:04:05]} Bxc2+ {[%clk 00:13:19]} {[%emt 00:00:21]}
27. Nxc2 {[%clk 00:02:09]} {[%emt 00:00:17]} Rxd6 {[%clk 00:13:25]} {[%emt
00:00:26]} 28. Rxd6 {[%clk 00:02:33]} {[%emt 00:00:05]} Qxc4 {[%clk 00:13:39]}
{[%emt 00:00:16]} 29. Ne3 {[%clk 00:01:16]} {[%emt 00:01:47]} Qe2 {[%clk
00:13:45]} {[%emt 00:00:23]} 30. Ng4 {[%clk 00:01:04]} {[%emt 00:00:43]} Qf1+
{[%clk 00:13:56]} {[%emt 00:00:19]} 31. Kc2 {[%clk 00:01:19]} {[%emt 00:00:14]}
Qxg2+ {[%clk 00:13:46]} {[%emt 00:00:41]} 32. Rd2 {[%clk 00:00:54]} {[%emt
00:00:55]} Qxf3 {[%clk 00:14:01]} {[%emt 00:00:13]} 33. Nxe5 {[%clk 00:01:10]}
{[%emt 00:00:15]} Qe4+ {[%clk 00:14:15]} {[%emt 00:00:17]} 34. Nd3 {[%clk
00:01:30]} {[%emt 00:00:09]} f5 {[%clk 00:14:12]} {[%emt 00:00:33]} 35. Rf2
{[%clk 00:01:40]} {[%emt 00:00:21]} f4 {[%clk 00:13:52]} {[%emt 00:00:51]} 36.
Rxf4 {[%clk 00:01:56]} {[%emt 00:00:13]} Qe2+ {[%clk 00:14:15]} {[%emt
00:00:06]} 37. Kc3 {[%clk 00:02:16]} {[%emt 00:00:11]} Qxh2 {[%clk 00:14:31]}
{[%emt 00:00:14]} 38. Rf8+ {[%clk 00:02:28]} {[%emt 00:00:18]} Kc7 {[%clk
00:14:44]} {[%emt 00:00:15]} 39. Rf7+ {[%clk 00:02:47]} {[%emt 00:00:12]} Kd8
{[%clk 00:15:01]} {[%emt 00:00:13]} 40. Ra7 {[%clk 00:02:29]} {[%emt 00:00:49]}
h5 {[%clk 00:14:12]} {[%emt 00:01:18]} 41. Rxa6 {[%clk 00:02:44]} {[%emt
00:00:15]} h4 {[%clk 00:13:31]} {[%emt 00:01:11]} 42. Rh6 {[%clk 00:02:47]}
{[%emt 00:00:27]} Qg3 {[%clk 00:13:28]} {[%emt 00:00:32]} 43. Rh5 {[%clk
00:01:04]} {[%emt 00:02:14]} h3 {[%clk 00:13:20]} {[%emt 00:00:38]} 44. Rxb5
{[%clk 00:01:07]} {[%emt 00:00:27]} h2 {[%clk 00:13:36]} {[%emt 00:00:14]} 45.
Rh5 {[%clk 00:01:22]} {[%emt 00:00:15]} Qg2 {[%clk 00:13:15]} {[%emt 00:00:51]}
46. Rh8+ {[%clk 00:01:27]} {[%emt 00:00:26]} Ke7 {[%clk 00:13:34]} {[%emt
00:00:10]} 47. Rh7+ {[%clk 00:01:41]} {[%emt 00:00:16]} Kf8 {[%clk 00:13:56]}
{[%emt 00:00:08]} 48. Rh8+ {[%clk 00:01:44]} {[%emt 00:00:28]} Kg7 {[%clk
00:14:00]} {[%emt 00:00:25]} 49. Rh5 {[%clk 00:01:53]} {[%emt 00:00:20]} h1=Q
{[%clk 00:14:15]} {[%emt 00:00:17]} 50. Rxh1 {[%clk 00:02:13]} {[%emt
00:00:10]} Qxh1 {[%clk 00:14:40]} {[%emt 00:00:05]} 51. a4 {[%clk 00:02:00]}
{[%emt 00:00:43]} Qc6+ {[%clk 00:14:40]} {[%emt 00:00:29]} 52. Kb3 {[%clk
00:02:16]} {[%emt 00:00:13]} Kf6 {[%clk 00:14:49]} {[%emt 00:00:20]} 53. Nb4
{[%clk 00:02:25]} {[%emt 00:00:23]} Qb6 {[%clk 00:14:52]} {[%emt 00:00:24]} 54.
Ka3 {[%clk 00:02:10]} {[%emt 00:00:47]} Ke6 {[%clk 00:14:37]} {[%emt 00:00:44]}
55. Kb3 {[%clk 00:02:02]} {[%emt 00:00:40]} Kd6 {[%clk 00:12:31]} {[%emt
00:02:34]} 56. Ka3 {[%clk 00:01:42]} {[%emt 00:00:52]} Kc5 {[%clk 00:11:59]}
{[%emt 00:00:59]} 57. Nc2 {[%clk 00:01:18]} {[%emt 00:00:57]} Kc4 {[%clk
00:12:07]} {[%emt 00:00:20]} 58. Ka2 {[%clk 00:00:35]} {[%emt 00:01:15]} Qb3+
{[%clk 00:12:07]} {[%emt 00:00:30]} 59. Kb1 {[%clk 00:00:59]} {[%emt 00:00:05]}
Qxa4 {[%clk 00:11:40]} {[%emt 00:00:58]} 60. Na3+ {[%clk 00:01:14]} {[%emt
00:00:14]} Kb3 {[%clk 00:11:57]} {[%emt 00:00:13]} 61. Ka1 {[%clk 00:01:16]}
{[%emt 00:00:27]} Qe4 {[%clk 00:11:38]} {[%emt 00:00:38]} 62. Nb1 {[%clk
00:01:28]} {[%emt 00:00:31]} Qa8+ {[%clk 00:11:22]} {[%emt 00:00:46]} 63. Na3
{[%clk 00:01:49]} {[%emt 00:00:09]} Qa6 {[%clk 00:11:52]} {[%emt 00:00:01]} 64.
Kb1 {[%clk 00:02:07]} {[%emt 00:00:11]} Qf1# {[%clk 00:12:17]} {[%emt
00:00:04]} 0-1

[Event "NJSK 2023 Jeugd C"]
[Site "Almelo, Netherlands"]
[Date "2023.05.06"]
[Round "9.11"]
[White "Vijver, Jonathan"]
[Black "Klein Tuente, Sam"]
[Result "1/2-1/2"]
[TimeControl "90min/40moves + 30min + 30sec/move"]
[WhiteElo "1781"]
[BlackElo "1478"]

1. e4 {[%clk 01:30:57]} {[%emt 00:00:03]} c5 {[%clk 01:30:54]} {[%emt
00:00:06]} 2. d4 {[%clk 01:31:22]} {[%emt 00:00:06]} cxd4 {[%clk 01:31:20]}
{[%emt 00:00:04]} 3. c3 {[%clk 01:31:49]} {[%emt 00:00:03]} dxc3 {[%clk
01:31:40]} {[%emt 00:00:10]} 4. Nxc3 {[%clk 01:32:14]} {[%emt 00:00:04]} e6
{[%clk 01:27:17]} {[%emt 00:04:54]} 5. Nf3 {[%clk 01:32:04]} {[%emt 00:00:39]}
Bb4 {[%clk 01:26:31]} {[%emt 00:01:16]} 6. Qd4 {[%clk 01:32:12]} {[%emt
00:00:22]} Nc6 {[%clk 01:26:14]} {[%emt 00:00:48]} 7. Qxg7 {[%clk 01:31:34]}
{[%emt 00:01:07]} Qf6 {[%clk 01:26:05]} {[%emt 00:00:39]} 8. Bh6 {[%clk
01:31:19]} {[%emt 00:00:45]} Be7 {[%clk 01:24:09]} {[%emt 00:02:26]} 9. Qxf6
{[%clk 01:17:05]} {[%emt 00:14:44]} Bxf6 {[%clk 01:23:02]} {[%emt 00:01:37]} 10.
Bf4 {[%clk 01:15:08]} {[%emt 00:02:24]} Bxc3+ {[%clk 01:13:20]} {[%emt
00:10:15]} 11. bxc3 {[%clk 01:15:19]} {[%emt 00:00:19]} Nf6 {[%clk 01:10:59]}
{[%emt 00:02:52]} 12. Bd3 {[%clk 01:15:12]} {[%emt 00:00:35]} d5 {[%clk
01:10:54]} {[%emt 00:00:36]} 13. e5 {[%clk 01:13:11]} {[%emt 00:02:31]} Nd7
{[%clk 01:09:24]} {[%emt 00:02:01]} 14. O-O {[%clk 01:11:14]} {[%emt 00:02:25]}
Nc5 {[%clk 01:08:04]} {[%emt 00:01:51]} 15. Bc2 {[%clk 01:10:59]} {[%emt
00:00:45]} b6 {[%clk 01:07:12]} {[%emt 00:01:22]} 16. Nd4 {[%clk 01:10:12]}
{[%emt 00:01:17]} Nxd4 {[%clk 01:01:59]} {[%emt 00:05:43]} 17. cxd4 {[%clk
01:10:34]} {[%emt 00:00:08]} Nd7 {[%clk 00:59:12]} {[%emt 00:03:18]} 18. Ba4
{[%clk 01:09:40]} {[%emt 00:01:24]} Ba6 {[%clk 00:58:12]} {[%emt 00:01:29]} 19.
Rfc1 {[%clk 01:06:03]} {[%emt 00:04:07]} Bc4 {[%clk 00:56:27]} {[%emt
00:02:15]} 20. Bb3 {[%clk 01:02:51]} {[%emt 00:03:43]} b5 {[%clk 00:56:20]}
{[%emt 00:00:37]} 21. Bd2 {[%clk 00:57:47]} {[%emt 00:05:33]} 1/2-1/2

[Event "NJSK 2023 Jeugd C"]
[Site "Almelo, Netherlands"]
[Date "2023.05.06"]
[Round "9.12"]
[White "Etienne, Ghilon"]
[Black "Rooijakkers, Liam"]
[Result "1/2-1/2"]
[TimeControl "90min/40moves + 30min + 30sec/move"]
[WhiteElo "1673"]
[BlackElo "1322"]

1. d4 {[%clk 01:30:58]} {[%emt 00:00:02]} d6 {[%clk 01:30:52]} {[%emt
00:00:08]} 2. Nf3 {[%clk 01:31:23]} {[%emt 00:00:05]} Nf6 {[%clk 01:31:04]}
{[%emt 00:00:18]} 3. g3 {[%clk 01:31:46]} {[%emt 00:00:07]} Nbd7 {[%clk
01:30:37]} {[%emt 00:00:58]} 4. Bg2 {[%clk 01:31:51]} {[%emt 00:00:24]} h6
{[%clk 01:29:26]} {[%emt 00:01:41]} 5. O-O {[%clk 01:31:44]} {[%emt 00:00:36]}
e5 {[%clk 01:29:26]} {[%emt 00:00:30]} 6. e3 {[%clk 01:30:39]} {[%emt
00:01:35]} c6 {[%clk 01:28:03]} {[%emt 00:01:54]} 7. c4 {[%clk 01:29:28]}
{[%emt 00:01:40]} Qc7 {[%clk 01:25:48]} {[%emt 00:02:45]} 8. Nc3 {[%clk
01:27:51]} {[%emt 00:02:07]} Be7 {[%clk 01:25:13]} {[%emt 00:01:05]} 9. Qc2
{[%clk 01:27:12]} {[%emt 00:01:09]} Nf8 {[%clk 01:23:50]} {[%emt 00:01:54]} 10.
b3 {[%clk 01:25:52]} {[%emt 00:01:49]} Ng6 {[%clk 01:23:29]} {[%emt 00:00:52]}
11. Bb2 {[%clk 01:24:21]} {[%emt 00:02:02]} Bd7 {[%clk 01:22:04]} {[%emt
00:01:54]} 12. Rac1 {[%clk 01:23:24]} {[%emt 00:01:26]} Qc8 {[%clk 01:15:56]}
{[%emt 00:06:39]} 13. d5 {[%clk 01:14:14]} {[%emt 00:09:40]} c5 {[%clk
01:15:41]} {[%emt 00:00:45]} 14. a3 {[%clk 01:14:25]} {[%emt 00:00:19]} b6
{[%clk 01:11:13]} {[%emt 00:04:57]} 15. Nd2 {[%clk 01:11:37]} {[%emt 00:03:18]}
Bh3 {[%clk 01:06:40]} {[%emt 00:05:03]} 16. b4 {[%clk 01:11:07]} {[%emt
00:01:00]} Bxg2 {[%clk 01:06:09]} {[%emt 00:01:01]} 17. Kxg2 {[%clk 01:11:32]}
{[%emt 00:00:05]} O-O {[%clk 01:04:09]} {[%emt 00:02:30]} 18. Na4 {[%clk
01:05:12]} {[%emt 00:06:50]} Qg4 {[%clk 01:03:28]} {[%emt 00:01:11]} 19. f3
{[%clk 01:00:51]} {[%emt 00:04:51]} Qd7 {[%clk 00:59:59]} {[%emt 00:04:00]} 20.
Qb3 {[%clk 00:54:48]} {[%emt 00:06:33]} Rab8 {[%clk 00:57:25]} {[%emt
00:03:04]} 21. Nc3 {[%clk 00:52:42]} {[%emt 00:02:35]} Qb7 {[%clk 00:56:34]}
{[%emt 00:01:18]} 22. a4 {[%clk 00:52:17]} {[%emt 00:00:59]} a6 {[%clk
00:55:53]} {[%emt 00:01:11]} 23. Ra1 {[%clk 00:47:33]} {[%emt 00:05:12]} Bd8
{[%clk 00:55:45]} {[%emt 00:00:39]} 24. Rfb1 {[%clk 00:46:33]} {[%emt
00:01:30]} Nd7 {[%clk 00:55:14]} {[%emt 00:01:02]} 25. Bc1 {[%clk 00:45:39]}
{[%emt 00:01:24]} Qa7 {[%clk 00:54:32]} {[%emt 00:01:12]} 26. Qc2 {[%clk
00:44:19]} {[%emt 00:01:49]} f5 {[%clk 00:54:09]} {[%emt 00:00:53]} 27. Ba3
{[%clk 00:42:57]} {[%emt 00:01:52]} Bc7 {[%clk 00:52:29]} {[%emt 00:02:10]} 28.
bxc5 {[%clk 00:42:38]} {[%emt 00:00:50]} bxc5 {[%clk 00:52:43]} {[%emt
00:00:16]} 29. Rb3 {[%clk 00:42:43]} {[%emt 00:00:24]} Ba5 {[%clk 00:51:39]}
{[%emt 00:01:35]} 30. Rab1 {[%clk 00:42:26]} {[%emt 00:00:47]} Rxb3 {[%clk
00:51:38]} {[%emt 00:00:31]} 31. Rxb3 {[%clk 00:42:45]} {[%emt 00:00:11]} Rb8
{[%clk 00:51:59]} {[%emt 00:00:09]} 32. Bc1 {[%clk 00:40:16]} {[%emt 00:02:58]}
Rxb3 {[%clk 00:50:33]} {[%emt 00:01:57]} 33. Qxb3 {[%clk 00:40:33]} {[%emt
00:00:13]} Bxc3 {[%clk 00:50:21]} {[%emt 00:00:41]} 34. Qxc3 {[%clk 00:40:59]}
{[%emt 00:00:05]} Qb6 {[%clk 00:50:20]} {[%emt 00:00:31]} 35. a5 {[%clk
00:40:04]} {[%emt 00:01:26]} Qb4 {[%clk 00:50:24]} {[%emt 00:00:25]} 36. Qa3
{[%clk 00:25:35]} {[%emt 00:14:59]} 1/2-1/2

[Event "NJSK 2023 Jeugd C"]
[Site "Almelo, Netherlands"]
[Date "2023.05.06"]
[Round "9.13"]
[White "De Wit, Evan"]
[Black "Ten Kate, Gustav"]
[Result "1/2-1/2"]
[TimeControl "90min/40moves + 30min + 30sec/move"]
[WhiteElo "1563"]
[BlackElo "1815"]

1. e4 {[%clk 01:30:58]} {[%emt 00:00:02]} b6 {[%clk 01:30:55]} {[%emt
00:00:05]} 2. d4 {[%clk 01:31:07]} {[%emt 00:00:22]} Bb7 {[%clk 01:31:14]}
{[%emt 00:00:09]} 3. Nc3 {[%clk 01:31:20]} {[%emt 00:00:19]} e6 {[%clk
01:31:38]} {[%emt 00:00:06]} 4. a3 {[%clk 01:31:00]} {[%emt 00:00:50]} Nf6
{[%clk 01:20:08]} {[%emt 00:11:59]} 5. Bd3 {[%clk 01:30:15]} {[%emt 00:01:15]}
c5 {[%clk 01:17:48]} {[%emt 00:02:50]} 6. Nf3 {[%clk 01:29:16]} {[%emt
00:01:28]} cxd4 {[%clk 01:16:35]} {[%emt 00:01:44]} 7. Nxd4 {[%clk 01:29:22]}
{[%emt 00:00:24]} Be7 {[%clk 01:14:27]} {[%emt 00:02:37]} 8. O-O {[%clk
01:29:23]} {[%emt 00:00:30]} O-O {[%clk 01:13:56]} {[%emt 00:01:00]} 9. Kh1
{[%clk 01:29:06]} {[%emt 00:00:47]} d5 {[%clk 01:10:08]} {[%emt 00:04:19]} 10.
e5 {[%clk 01:29:09]} {[%emt 00:00:28]} Ne4 {[%clk 01:10:06]} {[%emt 00:00:32]}
11. Qg4 {[%clk 01:28:46]} {[%emt 00:00:45]} Re8 {[%clk 00:55:59]} {[%emt
00:14:43]} 12. Nxe4 {[%clk 01:27:29]} {[%emt 00:01:48]} dxe4 {[%clk 00:56:12]}
{[%emt 00:00:16]} 13. Bxe4 {[%clk 01:27:42]} {[%emt 00:00:18]} Bxe4 {[%clk
00:53:09]} {[%emt 00:03:32]} 14. Qxe4 {[%clk 01:27:51]} {[%emt 00:00:21]} Qd5
{[%clk 00:52:09]} {[%emt 00:01:30]} 15. Qxd5 {[%clk 01:26:39]} {[%emt
00:01:43]} exd5 {[%clk 00:52:26]} {[%emt 00:00:13]} 16. f4 {[%clk 01:26:59]}
{[%emt 00:00:10]} Rc8 {[%clk 00:49:57]} {[%emt 00:02:59]} 17. Be3 {[%clk
01:25:55]} {[%emt 00:01:33]} Bc5 {[%clk 00:48:49]} {[%emt 00:01:39]} 18. c3
{[%clk 01:24:22]} {[%emt 00:02:03]} Bxd4 {[%clk 00:47:05]} {[%emt 00:02:13]} 19.
Bxd4 {[%clk 01:24:42]} {[%emt 00:00:11]} Nc6 {[%clk 00:39:38]} {[%emt
00:07:56]} 20. Rac1 {[%clk 01:19:47]} {[%emt 00:05:26]} Rc7 {[%clk 00:35:26]}
{[%emt 00:04:42]} 21. Rfd1 {[%clk 01:18:25]} {[%emt 00:01:52]} Na5 {[%clk
00:31:17]} {[%emt 00:04:39]} 22. Rd3 {[%clk 01:17:20]} {[%emt 00:01:34]} Rd7
{[%clk 00:26:04]} {[%emt 00:05:43]} 23. f5 {[%clk 01:16:27]} {[%emt 00:01:24]}
Re8 {[%clk 00:24:24]} {[%emt 00:02:10]} 24. Re1 {[%clk 01:15:30]} {[%emt
00:01:27]} g5 {[%clk 00:21:32]} {[%emt 00:03:22]} 25. Rg3 {[%clk 01:13:44]}
{[%emt 00:02:16]} h6 {[%clk 00:20:21]} {[%emt 00:01:40]} 26. h4 {[%clk
01:13:47]} {[%emt 00:00:27]} Nc4 {[%clk 00:11:44]} {[%emt 00:09:07]} 27. Re2
{[%clk 01:09:46]} {[%emt 00:04:31]} Nd6 {[%clk 00:10:00]} {[%emt 00:02:12]} 28.
hxg5 {[%clk 01:06:54]} {[%emt 00:03:23]} Nxf5 {[%clk 00:08:09]} {[%emt
00:02:21]} 29. Rh3 {[%clk 01:05:37]} {[%emt 00:01:47]} Nxd4 {[%clk 00:07:53]}
{[%emt 00:00:47]} 30. cxd4 {[%clk 01:05:56]} {[%emt 00:00:11]} Rc7 {[%clk
00:07:15]} {[%emt 00:01:08]} 31. Rxh6 {[%clk 01:05:41]} {[%emt 00:00:45]} Kg7
{[%clk 00:06:14]} {[%emt 00:01:31]} 32. Rd6 {[%clk 01:05:35]} {[%emt 00:00:35]}
Rc4 {[%clk 00:04:28]} {[%emt 00:02:18]} 33. Rxd5 {[%clk 01:05:41]} {[%emt
00:00:24]} Kg6 {[%clk 00:04:43]} {[%emt 00:00:14]} 34. Kh2 {[%clk 01:05:02]}
{[%emt 00:01:09]} Kxg5 {[%clk 00:04:45]} {[%emt 00:00:29]} 35. e6+ {[%clk
01:04:57]} {[%emt 00:00:34]} f5 {[%clk 00:04:47]} {[%emt 00:00:28]} 36. Ree5
{[%clk 01:04:50]} {[%emt 00:00:36]} Kg4 {[%clk 00:04:53]} {[%emt 00:00:24]} 37.
Rxf5 {[%clk 01:04:35]} {[%emt 00:00:45]} Rxe6 {[%clk 00:04:09]} {[%emt
00:01:14]} 38. Rg5+ {[%clk 01:03:34]} {[%emt 00:01:31]} Kf4 {[%clk 00:04:30]}
{[%emt 00:00:10]} 39. Rdf5+ {[%clk 01:03:35]} {[%emt 00:00:30]} Ke4 {[%clk
00:04:34]} {[%emt 00:00:25]} 40. Rf7 {[%clk 01:02:19]} {[%emt 00:01:46]} a5
{[%clk 00:02:09]} {[%emt 00:02:56]} 41. Re5+ {[%clk 01:01:29]} {[%emt
00:01:18]} Rxe5 {[%clk 00:02:34]} {[%emt 00:00:06]} 42. dxe5 {[%clk 01:01:53]}
{[%emt 00:00:06]} Rc6 {[%clk 00:02:29]} {[%emt 00:00:35]} 43. Rb7 {[%clk
01:00:01]} {[%emt 00:02:22]} Kxe5 {[%clk 00:02:44]} {[%emt 00:00:14]} 44. Kg3
{[%clk 01:00:08]} {[%emt 00:00:24]} Kf5 {[%clk 00:02:54]} {[%emt 00:00:20]} 45.
Kf3 {[%clk 01:00:12]} {[%emt 00:00:25]} Rd6 {[%clk 00:02:35]} {[%emt 00:00:50]}
46. g4+ {[%clk 00:59:14]} {[%emt 00:01:28]} Kg5 {[%clk 00:02:45]} {[%emt
00:00:21]} 47. Ke4 {[%clk 00:58:19]} {[%emt 00:01:24]} Kxg4 {[%clk 00:02:29]}
{[%emt 00:00:46]} 48. Ke5 {[%clk 00:58:42]} {[%emt 00:00:07]} Rc6 {[%clk
00:02:34]} {[%emt 00:00:26]} 49. Kd5 {[%clk 00:59:06]} {[%emt 00:00:05]} Rc5+
{[%clk 00:02:57]} {[%emt 00:00:07]} 50. Kd6 {[%clk 00:58:13]} {[%emt 00:01:22]}
Rb5 {[%clk 00:03:03]} {[%emt 00:00:24]} 51. Kc6 {[%clk 00:58:36]} {[%emt
00:00:07]} Rxb2 {[%clk 00:03:25]} {[%emt 00:00:08]} 52. Rxb6 {[%clk 00:58:58]}
{[%emt 00:00:09]} Ra2 {[%clk 00:03:40]} {[%emt 00:00:15]} 53. Rb3 {[%clk
00:58:58]} {[%emt 00:00:29]} Kf5 {[%clk 00:03:07]} {[%emt 00:01:04]} 54. Rb5+
{[%clk 00:59:13]} {[%emt 00:00:14]} Ke6 {[%clk 00:03:17]} {[%emt 00:00:21]} 55.
Rxa5 {[%clk 00:59:32]} {[%emt 00:00:11]} Rc2+ {[%clk 00:03:27]} {[%emt
00:00:20]} 56. Kb7 {[%clk 00:58:28]} {[%emt 00:01:33]} Kd6 {[%clk 00:02:48]}
{[%emt 00:01:10]} 1/2-1/2